bitfinex-derivatives/quotes_ETHF0:USTF0_20210111
["timestamp","ask_amount","ask_price","bid_price","bid_amount"]
[1610323646053,20.90587829,1233.2,1232.2,4.00959]
[1610323646453,20.90246943,1233.4,1232.2,4.00959]
[1610323647051,64.9029,1234.1,1232.2,5.78499]
[1610323647052,20.90152866,1233.5,1232.2,5.78499]
[1610323647251,4.00959,1233.3,1233.1,4.00959]
[1610323647655,2.095,1233.5,1233.1,4.00959]
[1610323649258,2.095,1233.5,1233.4,4.00959]
[1610323649454,64.9029,1234.1,1233.4,4.00959]
[1610323650455,64.9029,1234.1,1233.4,5.55429]
[1610323651256,64.9029,1234.1,1234.0,4.00959]
[1610323651661,64.9029,1234.1,1233.1,1.6925]
[1610323651859,66.5524,1234.1,1233.1,1.6925]
[1610323652064,66.5524,1234.1,1232.8,2.3144]
[1610323652859,68.1725,1234.1,1232.8,2.3144]
[1610323653260,68.1725,1234.1,1233.5,4.00959]
[1610323653461,68.1725,1234.1,1232.8,2.3144]
[1610323654459,3.2696,1234.1,1232.7,56.8381]
[1610323654660,1.6201,1234.1,1232.7,56.8381]
[1610323655158,1.6201,1234.1,1233.5,4.00959]
[1610323656663,20.88027201,1235.2,1233.5,4.00959]
[1610323656862,20.87960341,1235.3,1233.5,4.00959]
[1610323657066,20.87759722,1235.5,1233.5,4.00959]
[1610323657266,4.00959,1234.1,1233.9,4.00959]
[1610323657865,5.54889,1234.1,1232.7,56.8381]
[1610323658864,4.00959,1234.1,1232.7,56.8381]
[1610323659267,4.00959,1234.1,1234.0,4.00959]
[1610323659665,4.00959,1234.1,1234.0,5.67789]
[1610323660066,20.8814787,1234.9,1234.0,5.67789]
[1610323660966,2.5024,1235.1,1234.0,5.67789]
[1610323661366,4.00959,1234.3,1234.0,5.67789]
[1610323661566,2.5024,1235.1,1234.0,5.67789]
[1610323662466,21.37447686,1235.7,1234.0,5.67789]
[1610323662870,21.37361846,1235.8,1234.0,5.67789]
[1610323663069,21.37246369,1235.9,1234.0,5.67789]
[1610323663270,21.37246369,1235.9,1235.5,4.00959]
[1610323663469,21.36878001,1236.1,1235.5,4.00959]
[1610323663669,5.7045375,1235.7,1234.5,1.9866]
[1610323663869,1.9305,1235.6,1234.5,1.9866]
[1610323665071,5.70421575,1235.5,1234.5,1.9866]
[1610323665274,5.70421575,1235.5,1235.4,4.00959]
[1610323666273,1.9305,1235.6,1235.4,4.00959]
[1610323666474,4.00959,1236.3,1235.4,4.00959]
[1610323667075,4.00959,1236.3,1234.8,2.2177]
[1610323667076,4.00959,1236.3,1234.5,1.9866]
[1610323667276,2.2654,1236.3,1235.1,4.00959]
[1610323667676,5.70400333,1236.2,1234.5,1.9866]
[1610323668678,5.70400333,1236.2,1234.0,1.6683]
[1610323668875,5.70400333,1236.2,1232.8,12.0363]
[1610323669277,4.00959,1236.1,1235.4,4.00959]
[1610323669576,4.00959,1236.1,1232.8,12.0363]
[1610323670476,4.00959,1236.1,1232.8,42.0363]
[1610323670677,5.70342855,1236.0,1232.9,1.24056756]
[1610323670877,7.83772855,1236.0,1232.9,1.24056756]
[1610323671277,7.83772855,1236.0,1235.5,4.00959]
[1610323671978,5.76055403,1235.9,1235.5,4.00959]
[1610323673382,5.76055403,1235.9,1235.8,4.00959]
[1610323675984,7.50035403,1235.9,1234.9,2.1579]
[1610323676184,1.7398,1235.9,1234.7,67.1252]
[1610323677386,1.7398,1235.9,1234.8,4.00959]
[1610323677585,5.76120186,1235.8,1234.8,4.00959]
[1610323678185,5.76120186,1235.8,1234.7,67.1252]
[1610323679386,5.76120186,1235.8,1235.1,4.00959]
[1610323680588,5.76120186,1235.8,1235.1,6.14119]
[1610323681392,5.76120186,1235.8,1235.7,4.00959]
[1610323681692,5.7597466,1236.2,1235.7,4.00959]
[1610323683390,5.7597466,1236.2,1236.1,4.00959]
[1610323685891,5.75706977,1237.3,1236.1,4.00959]
[1610323687493,4.00959,1237.4,1237.2,4.00959]
[1610323688296,24.84962712,1237.4,1236.0,2.2371]
[1610323688494,27.00542712,1237.4,1236.0,2.2371]
[1610323688896,5.75658916,1237.3,1236.0,2.2371]
[1610323689498,5.75658916,1237.3,1237.2,4.00959]
[1610323691501,53.0966,1237.6,1237.2,4.00959]
[1610323691899,24.83914519,1238.0,1237.2,4.00959]
[1610323692300,20.82995606,1237.9,1237.2,4.00959]
[1610323692900,4.00959,1238.0,1237.2,4.00959]
[1610323693099,5.7549671,1237.9,1237.2,4.00959]
[1610323693499,5.7549671,1237.9,1237.4,4.00959]
[1610323694500,5.75507012,1238.1,1237.4,4.00959]
[1610323695401,5.75507012,1238.1,1237.1,1.8626]
[1610323695402,4.00959,1237.9,1237.8,4.00959]
[1610323695902,5.75507012,1238.1,1237.8,4.00959]
[1610323697405,5.75507012,1238.1,1238.0,4.00959]
[1610323702812,5.7530079,1238.5,1238.0,4.00959]
[1610323703413,5.7530079,1238.5,1238.4,4.00959]
[1610323705514,5.75250846,1238.6,1238.4,4.00959]
[1610323711119,5.75099507,1239.1,1238.4,4.00959]
[1610323711522,5.75099507,1239.1,1239.0,4.00959]
[1610323713823,4.00959,1240.0,1239.0,4.00959]
[1610323715423,5.74976873,1239.9,1239.0,4.00959]
[1610323715624,7.55106873,1239.9,1239.6,4.00959]
[1610323716723,5.74967827,1239.8,1239.1,1.7133]
[1610323716926,5.74967827,1239.8,1238.8,2.3343]
[1610323717525,5.74967827,1239.8,1238.9,4.00959]
[1610323717726,5.74967827,1239.8,1238.4,1.619]
[1610323718328,5.74967827,1239.8,1238.1,2.1769]
[1610323718528,5.74967827,1239.8,1235.9,11.5098]
[1610323719529,4.00959,1237.7,1237.6,4.00959]
[1610323719730,4.00959,1237.7,1235.9,11.5098]
[1610323719928,4.00959,1237.7,1235.0,0.24779224]
[1610323720129,4.00959,1237.7,1235.8,64.3541]
[1610323720329,4.00959,1237.7,1235.8,66.3939]
[1610323720929,5.75435691,1237.6,1235.8,66.3939]
[1610323721529,4.00959,1237.5,1237.3,4.00959]
[1610323722530,2.452,1237.9,1237.3,4.00959]
[1610323723631,2.452,1237.9,1236.8,1.5231]
[1610323723632,2.452,1237.9,1237.6,4.00959]
[1610323724031,1.6608,1238.3,1237.6,4.00959]
[1610323724932,62.7116,1238.8,1237.6,4.00959]
[1610323725133,5.75205825,1238.2,1237.6,4.00959]
[1610323725533,5.75205825,1238.2,1238.1,4.00959]
[1610323726536,5.75229912,1238.3,1238.1,4.00959]
[1610323727640,5.75229912,1238.3,1238.1,6.26769]
[1610323727840,5.75209441,1238.7,1238.1,6.26769]
[1610323729541,5.75209441,1238.7,1238.5,4.00959]
[1610323730845,5.75209441,1238.7,1238.1,2.2581]
[1610323731046,5.75209441,1238.7,1237.5,2.4305]
[1610323731446,5.75209441,1238.7,1237.3,45.3135]
[1610323731646,4.00959,1237.4,1237.3,45.3135]
[1610323733247,9.5705691,1237.4,1237.3,45.3135]
[1610323734747,9.5705691,1237.4,1234.9,11.5579]
[1610323734949,9.5705691,1237.4,1234.9,6.0453]
[1610323735148,9.5705691,1237.4,1234.4,3.405]
[1610323735548,4.00959,1235.9,1235.7,4.00959]
[1610323736149,4.00959,1235.9,1234.5,1.23929167]
[1610323737551,4.00959,1234.9,1234.7,4.00959]
[1610323738150,4.00959,1234.9,1233.7,1.23977689]
[1610323738550,2.0757,1236.0,1233.7,1.23977689]
[1610323738751,2.0757,1236.0,1233.7,3.07107689]
[1610323738955,56.9828,1235.7,1233.7,1.8313]
[1610323739555,4.00959,1235.0,1234.9,4.00959]
[1610323739757,4.00959,1235.0,1233.7,1.8313]
[1610323740755,56.9828,1235.7,1233.7,1.8313]
[1610323741756,56.9828,1235.7,1235.6,4.00959]
[1610323742157,56.9828,1235.7,1235.4,1.742]
[1610323742958,56.9828,1235.7,1233.7,1.8313]
[1610323743157,89.2058,1235.7,1233.7,1.8313]
[1610323743757,89.2058,1235.7,1233.1,58.8188]
[1610323744059,110.07163666,1235.7,1233.1,58.8188]
[1610323744358,20.86772223,1235.6,1233.1,58.8188]
[1610323744558,30.0,1235.5,1233.1,58.8188]
[1610323745360,20.87223131,1235.3,1233.1,58.8188]
[1610323745560,31.7441,1235.2,1233.1,58.8188]
[1610323745961,52.61759768,1235.2,1233.1,58.8188]
[1610323746362,20.87411918,1235.1,1233.1,58.8188]
[1610323746563,50.87620375,1235.0,1233.1,58.8188]
[1610323746961,20.8806083,1234.9,1233.1,58.8188]
[1610323747163,32.4051,1234.8,1233.1,58.8188]
[1610323747364,53.28705554,1234.8,1233.1,58.8188]
[1610323747966,20.88398382,1234.6,1233.1,58.8188]
[1610323748165,50.88490625,1234.5,1233.1,58.8188]
[1610323748367,50.88490625,1234.5,1231.1,3.405]
[1610323748368,55.8309,1234.3,1231.1,56.0523]
[1610323749173,4.00959,1233.8,1232.1,4.00959]
[1610323749571,1.8493,1234.2,1231.1,56.30086012]
[1610323749771,1.8493,1234.2,1231.1,57.82676012]
[1610323750273,1.8493,1234.2,1231.1,57.5782]
[1610323753375,1.8493,1234.2,1231.1,87.82672477]
[1610323753775,1.8493,1234.2,1231.3,0.24851105]
[1610323753976,1.8493,1234.2,1231.4,0.24845434]
[1610323754280,55.8309,1234.3,1231.7,0.24840584]
[1610323754481,55.8309,1234.3,1231.7,1.96970584]
[1610323754679,55.8309,1234.3,1231.9,0.24838161]
[1610323756080,55.8309,1234.3,1232.0,1.24135544]
[1610323756277,55.8309,1234.3,1232.0,2.89965544]
[1610323757478,55.8309,1234.3,1232.0,1.6583]
[1610323757677,8.9258,1234.3,1232.0,1.6583]
[1610323757883,20.88278269,1234.4,1232.0,1.6583]
[1610323758279,20.88416921,1234.3,1232.0,1.6583]
[1610323758481,20.88484249,1234.2,1232.0,1.6583]
[1610323758882,22.43354249,1234.2,1232.0,1.6583]
[1610323760483,5.57052222,1234.1,1232.0,1.6583]
[1610323761285,5.57052222,1234.1,1231.7,1.7213]
[1610323761685,5.57052222,1234.1,1231.4,1.9376]
[1610323761886,5.57052222,1234.1,1231.2,3.65349706]
[1610323762087,5.57052222,1234.1,1231.3,0.24846128]
[1610323762987,5.57052222,1234.1,1231.2,3.90194625]
[1610323762988,5.57052222,1234.1,1231.2,3.65348442]
[1610323763188,5.57052222,1234.1,1231.4,1.2417903]
[1610323763388,5.57052222,1234.1,1231.4,3.1312903]
[1610323764692,20.89375206,1233.8,1231.5,1.2426248]
[1610323765091,35.57052222,1234.1,1231.5,1.2426248]
[1610323765092,20.89471101,1233.6,1231.5,1.2426248]
[1610323765292,20.89663286,1233.5,1231.5,1.2426248]
[1610323765491,23.02423286,1233.5,1231.5,1.2426248]
[1610323765991,28.59620623,1233.5,1231.4,1.8895]
[1610323766796,20.89796723,1233.4,1231.4,1.8895]
[1610323767197,54.5689,1233.0,1231.4,1.8895]
[1610323767594,54.5689,1233.0,1230.3,63.464]
[1610323767998,20.9092407,1232.9,1230.3,63.464]
[1610323768398,20.91083681,1232.8,1230.3,63.464]
[1610323768794,20.91265097,1232.6,1230.3,63.464]
[1610323769397,20.91762567,1232.4,1230.3,63.464]
[1610323769599,23.09222567,1232.4,1230.3,63.464]
[1610323769802,20.91853104,1232.3,1230.3,63.464]
[1610323770001,26.4942152,1232.3,1230.3,63.464]
[1610323770401,20.91889462,1232.2,1230.3,63.464]
[1610323771502,5.57735169,1232.1,1230.3,63.464]
[1610323771704,20.92730688,1231.8,1230.3,63.464]
[1610323772105,22.74810688,1231.8,1230.3,63.464]
[1610323772705,20.92988215,1231.6,1230.3,63.464]
[1610323774306,20.9311852,1231.5,1230.3,63.464]
[1610323774506,23.3823852,1231.5,1230.3,63.464]
[1610323774707,19.93536589,1230.9,1230.3,63.464]
[1610323775106,19.93584273,1230.8,1230.3,63.464]
[1610323776507,19.93584273,1230.8,1227.9,6.1223]
[1610323776707,19.93133314,1231.1,1228.1,0.24907939]
[1610323777107,19.92926978,1231.3,1228.4,0.24905361]
[1610323777308,19.9268012,1231.5,1228.5,0.24902276]
[1610323777709,19.92415541,1231.6,1228.6,0.2489897]
[1610323778107,19.92020901,1231.8,1228.8,0.24894038]
[1610323778308,19.91979588,1231.9,1229.0,0.24893521]
[1610323778707,19.91953151,1232.0,1229.0,0.24893521]
[1610323778907,19.92060186,1231.9,1228.9,0.74681572]
[1610323779107,19.92060186,1231.9,1228.9,0.24894529]
[1610323779508,19.92060186,1231.9,1228.8,2.53909057]
[1610323779509,19.9227264,1231.7,1228.8,2.29017184]
[1610323779808,21.4732264,1231.7,1228.8,2.0412]
[1610323780209,19.92461774,1231.6,1228.8,2.0412]
[1610323781209,1.5505,1231.7,1228.8,2.29014482]
[1610323781609,1.5505,1231.7,1228.9,0.2489462]
[1610323782009,21.47385539,1231.7,1228.8,2.0412]
[1610323782408,19.92425408,1231.6,1228.8,2.0412]
[1610323782609,4.00959,1230.4,1230.2,4.00959]
[1610323782810,1.7842,1231.4,1230.2,4.00959]
[1610323783008,1.7842,1231.4,1230.2,6.14059]
[1610323783814,19.91986306,1231.9,1230.2,6.14059]
[1610323784013,21.94131775,1232.1,1230.2,6.14059]
[1610323784412,21.94131775,1232.1,1230.2,2.131]
[1610323784612,2.0258,1232.1,1232.0,4.00959]
[1610323784812,19.90857816,1232.3,1232.0,4.00959]
[1610323785014,19.90438247,1232.8,1232.0,4.00959]
[1610323785416,19.89668693,1233.1,1232.0,4.00959]
[1610323785615,20.8883651,1234.2,1232.0,4.00959]
[1610323786615,20.88737892,1234.1,1231.9,2.0002]
[1610323787417,20.89037983,1234.0,1231.9,2.0002]
[1610323787617,19.89851893,1233.2,1231.9,2.0002]
[1610323788018,5.57039582,1234.1,1231.9,2.0002]
[1610323788019,19.90044002,1233.1,1231.9,2.0002]
[1610323788617,4.00959,1232.4,1232.3,4.00959]
[1610323789216,19.90234058,1233.0,1232.3,4.00959]
[1610323789416,19.90234058,1233.0,1232.3,6.28179]
[1610323790016,19.90007264,1233.1,1232.3,6.28179]
[1610323790317,19.89941562,1233.2,1232.3,6.28179]
[1610323790520,19.89941562,1233.2,1232.3,2.2722]
[1610323790920,19.89660029,1233.3,1232.3,2.2722]
[1610323791320,20.89001867,1234.0,1232.3,2.2722]
[1610323791923,20.88967214,1234.1,1232.3,2.2722]
[1610323792524,20.88967214,1234.1,1233.0,4.00959]
[1610323792924,26.45970727,1234.0,1233.0,4.00959]
[1610323793126,26.45970727,1234.0,1232.8,2.0107]
[1610323793325,20.89070975,1233.9,1232.8,2.0107]
[1610323793524,19.89954442,1233.1,1232.8,2.0107]
[1610323793924,20.89427296,1233.7,1232.8,2.0107]
[1610323793925,19.90056302,1233.0,1232.8,2.0107]
[1610323794124,19.90044147,1233.1,1232.8,2.0107]
[1610323794524,4.00959,1232.9,1232.8,2.0107]
[1610323794924,23.91139874,1232.9,1232.3,6.28179]
[1610323795123,23.91139874,1232.9,1231.9,2.0002]
[1610323795325,23.91139874,1232.9,1231.2,55.3669]
[1610323795524,19.90523759,1232.7,1231.2,55.3669]
[1610323796325,19.90576307,1232.6,1231.2,55.3669]
[1610323796525,19.90576307,1232.6,1231.5,4.00959]
[1610323796725,19.90576307,1232.6,1231.2,55.3669]
[1610323796925,62.3866,1233.4,1231.2,55.3669]
[1610323796926,19.9103572,1232.3,1231.2,55.3669]
[1610323797126,19.91181794,1232.2,1231.2,55.3669]
[1610323797525,19.91316992,1232.0,1231.2,55.3669]
[1610323798124,2.1832,1232.5,1231.2,55.3669]
[1610323798526,4.00959,1231.3,1231.2,57.212]
[1610323800229,2.1832,1232.5,1231.2,57.212]
[1610323800628,4.00959,1231.6,1231.2,57.212]
[1610323800828,1.6311,1232.8,1231.2,57.212]
[1610323801232,5.80021742,1232.4,1231.2,57.212]
[1610323802630,4.00959,1232.2,1231.8,4.00959]
[1610323803030,4.00959,1232.2,1231.2,57.212]
[1610323804231,5.80027289,1232.1,1231.2,57.212]
[1610323804632,4.00959,1231.3,1231.2,1.8451]
[1610323805031,4.00959,1231.3,1231.1,4.00959]
[1610323805831,4.00959,1231.3,1230.2,2.131]
[1610323806233,4.00959,1231.3,1229.5,3.405]
[1610323806632,4.00959,1231.3,1230.8,4.00959]
[1610323806832,4.00959,1231.3,1230.8,6.01489]
[1610323808535,1.8556,1232.4,1231.1,4.00959]
[1610323808735,1.8556,1232.4,1230.8,2.0053]
[1610323808936,1.8556,1232.4,1231.1,1.9983]
[1610323809234,1.6697,1232.8,1231.1,1.9983]
[1610323809635,21.41409666,1233.1,1231.1,1.9983]
[1610323809636,5.80138267,1232.3,1231.1,1.9983]
[1610323810739,4.00959,1231.2,1231.1,1.9983]
[1610323811139,5.80138267,1232.3,1231.1,1.9983]
[1610323813140,4.00959,1231.2,1231.1,1.9983]
[1610323813340,4.00959,1231.2,1230.8,2.0053]
[1610323813541,4.00959,1231.2,1228.5,9.68392255]
[1610323813741,4.00959,1231.2,1228.5,3.405]
[1610323814141,60.9087,1230.9,1228.5,3.405]
[1610323815141,60.9087,1230.9,1229.5,6.12209]
[1610323816342,60.9087,1230.9,1229.5,2.1125]
[1610323816741,90.9087,1230.9,1229.5,2.1125]
[1610323817145,4.00959,1229.6,1229.5,2.1125]
[1610323818846,4.00959,1229.6,1228.1,61.0393]
[1610323819046,34.00959,1229.6,1228.1,61.0393]
[1610323819245,4.00959,1228.2,1228.1,61.0393]
[1610323822146,1.8965,1229.5,1228.1,61.0393]
[1610323822348,1.8965,1229.5,1228.1,62.8903]
[1610323823147,4.00959,1229.0,1228.6,4.00959]
[1610323824848,57.2067,1229.4,1228.6,4.00959]
[1610323825249,57.2067,1229.4,1229.1,4.00959]
[1610323827054,57.2067,1229.4,1229.0,2.1967]
[1610323827253,57.2067,1229.4,1229.3,4.00959]
[1610323827455,57.2067,1229.4,1229.3,5.71909]
[1610323832762,58.6089,1231.3,1229.3,5.71909]
[1610323833165,4.00959,1231.1,1230.8,4.00959]
[1610323833362,58.6089,1231.3,1229.3,1.7095]
[1610323833563,58.6089,1231.3,1229.3,1.7377]
[1610323834564,88.6089,1231.3,1229.3,1.7377]
[1610323834963,58.6089,1231.3,1229.3,1.7377]
[1610323835164,4.00959,1230.2,1229.8,4.00959]
[1610323835363,5.92779,1230.2,1229.8,4.00959]
[1610323836564,4.00959,1230.2,1229.8,4.00959]
[1610323836763,1.8068,1230.6,1229.3,1.7377]
[1610323837165,4.00959,1229.7,1229.6,4.00959]
[1610323837564,4.00959,1229.7,1229.3,1.7377]
[1610323837965,4.00959,1229.7,1229.0,2.1967]
[1610323838165,4.00959,1229.7,1228.9,67.0227]
[1610323838665,34.00959,1229.7,1228.9,67.0227]
[1610323839064,35.74669,1229.7,1228.9,67.0227]
[1610323839264,4.00959,1229.0,1228.9,67.0227]
[1610323839666,34.00959,1229.0,1228.9,67.0227]
[1610323839864,4.00959,1229.0,1228.9,67.0227]
[1610323842367,4.00959,1229.0,1227.7,57.2324]
[1610323843169,95.5969,1229.7,1228.4,6.47829]
[1610323843369,95.5969,1229.7,1228.4,2.4687]
[1610323844170,65.5969,1229.7,1228.4,2.4687]
[1610323844371,95.5969,1229.7,1228.4,2.4687]
[1610323844770,65.5969,1229.7,1228.4,2.4687]
[1610323845173,4.00959,1228.5,1228.4,2.4687]
[1610323847175,4.00959,1228.5,1227.7,57.2324]
[1610323847373,30.0,1228.4,1227.7,57.2324]
[1610323847976,36.31689,1228.5,1227.7,57.2324]
[1610323848975,30.0,1228.4,1227.7,57.2324]
[1610323849175,4.00959,1227.8,1227.7,57.2324]
[1610323851080,56.4748,1227.7,1225.4,51.9084]
[1610323851283,56.4748,1227.7,1224.7,4.00959]
[1610323851480,30.0,1227.6,1224.2,0.24994851]
[1610323851680,54.3666,1225.6,1223.9,0.24999474]
[1610323851881,54.3666,1225.6,1223.7,0.74998423]
[1610323851882,54.3666,1225.6,1223.7,0.25008243]
[1610323852281,54.3666,1225.6,1223.5,0.25012066]
[1610323852682,54.3666,1225.6,1223.4,0.25011439]
[1610323853083,54.3666,1225.6,1223.5,0.2500956]
[1610323853283,54.3666,1225.6,1225.5,4.00959]
[1610323853482,54.3666,1225.6,1225.5,5.75119]
[1610323854686,2.5044,1227.8,1225.5,5.75119]
[1610323854687,58.8099,1226.4,1225.5,5.75119]
[1610323855287,4.00959,1225.6,1225.5,5.75119]
[1610323855488,4.00959,1225.6,1225.5,1.7416]
[1610323858493,4.00959,1225.6,1223.9,58.8412]
[1610323859094,62.2442,1226.1,1223.9,58.8412]
[1610323859293,66.25379,1226.1,1223.9,58.8412]
[1610323859493,66.25379,1226.1,1223.9,60.4118]
[1610323859894,66.25379,1226.1,1223.9,60.6618139]
[1610323860093,62.2442,1226.1,1223.9,60.6618139]
[1610323860294,62.2442,1226.1,1224.0,0.24997938]
[1610323860497,62.2442,1226.1,1224.1,0.24994476]
[1610323860895,62.2442,1226.1,1224.3,0.24990079]
[1610323861096,7.0912,1225.6,1224.3,1.76110079]
[1610323861297,7.0912,1225.6,1225.5,4.00959]
[1610323861494,7.0912,1225.6,1225.5,6.09139]
[1610323861694,0.2054,1225.6,1225.5,6.09139]
[1610323861894,47.6586,1227.0,1225.5,6.09139]
[1610323863294,47.6586,1227.0,1226.9,4.00959]
[1610323863696,47.6586,1227.0,1226.9,5.62279]
[1610323865499,41.0428,1227.0,1226.9,5.62279]
[1610323865698,21.46938034,1230.0,1226.9,5.62279]
[1610323865899,21.96855217,1230.8,1226.9,5.62279]
[1610323865900,21.46394229,1230.1,1226.9,5.62279]
[1610323866301,21.46373916,1230.3,1226.9,5.62279]
[1610323866703,47.7273,1229.1,1226.9,5.62279]
[1610323867301,4.00959,1228.8,1228.7,4.00959]
[1610323868001,4.00959,1228.8,1227.0,1.24643085]
[1610323868801,4.00959,1228.8,1226.9,1.6132]
[1610323869004,4.00959,1228.8,1226.3,45.792]
[1610323869204,2.0335,1228.9,1226.9,4.00959]
[1610323869403,2.0335,1228.9,1226.3,45.792]
[1610323869603,30.0,1228.8,1226.3,47.8183]
[1610323870003,32.0335,1228.9,1226.3,47.8183]
[1610323870504,53.52046122,1228.9,1226.3,2.0263]
[1610323870904,21.48852586,1228.8,1226.3,2.0263]
[1610323871105,30.0,1228.7,1226.0,1.706]
[1610323871306,51.4916244,1228.7,1226.2,4.00959]
[1610323871507,21.49180635,1228.6,1226.2,4.00959]
[1610323871707,23.78670635,1228.6,1226.2,4.00959]
[1610323871907,21.49300207,1228.5,1226.2,4.00959]
[1610323872107,51.49300207,1228.5,1226.2,4.00959]
[1610323873109,21.49300207,1228.5,1226.2,4.00959]
[1610323873308,4.00959,1226.4,1226.2,4.00959]
[1610323873710,1.6381,1227.0,1226.2,4.00959]
[1610323875311,4.00959,1226.5,1226.2,4.00959]
[1610323875511,1.6381,1227.0,1226.2,4.00959]
[1610323875910,23.78485584,1228.6,1226.2,4.00959]
[1610323876111,21.49296692,1228.5,1226.2,4.00959]
[1610323876314,21.49296692,1228.5,1226.0,1.706]
[1610323876512,21.49296692,1228.5,1225.5,2.0818]
[1610323876513,51.49296692,1228.5,1225.5,2.0818]
[1610323876713,51.49296692,1228.5,1224.3,1.76106931]
[1610323876913,51.49296692,1228.5,1224.3,1.5112]
[1610323876914,21.49964869,1228.3,1224.3,1.5112]
[1610323877115,30.0,1228.2,1224.3,1.5112]
[1610323877315,4.00959,1225.8,1225.6,4.00959]
[1610323877514,4.00959,1225.8,1224.0,3.405]
[1610323878414,4.00959,1225.8,1224.1,1.24931124]
[1610323879015,4.00959,1225.8,1224.1,3.08511124]
[1610323879416,2.1312,1226.9,1225.4,4.00959]
[1610323879616,2.1312,1226.9,1225.4,5.83769]
[1610323879816,52.7595,1226.1,1225.4,5.83769]
[1610323880016,2.1312,1226.9,1225.4,5.83769]
[1610323881321,2.1312,1226.9,1225.8,4.00959]
[1610323881518,2.1312,1226.9,1225.8,2.3863]
[1610323881717,2.2845,1227.2,1225.8,2.3863]
[1610323881918,32.2845,1227.2,1225.8,2.3863]
[1610323883019,2.2845,1227.2,1225.8,2.3863]
[1610323883219,30.0,1227.2,1225.8,2.3863]
[1610323883419,4.00959,1225.9,1225.8,2.3863]
[1610323884224,34.00959,1225.9,1225.4,1.8281]
[1610323884627,34.00959,1225.9,1224.1,1.8358]
[1610323885027,34.00959,1225.9,1223.0,0.3]
[1610323885220,36.50649,1225.9,1223.0,0.3]
[1610323885422,32.4969,1225.9,1223.2,4.00959]
[1610323885620,32.4969,1225.9,1223.2,5.55079]
[1610323886622,2.4969,1225.9,1223.2,5.55079]
[1610323887224,5.82441541,1225.8,1223.2,5.55079]
[1610323887424,4.00959,1223.8,1223.6,4.00959]
[1610323887625,4.00959,1223.8,1223.2,1.5412]
[1610323889625,1.6883,1224.9,1223.2,1.5412]
[1610323890527,2.0436,1225.2,1223.2,1.5412]
[1610323890728,2.4969,1225.9,1223.2,2.0955]
[1610323890927,21.53800299,1226.1,1223.2,2.0955]
[1610323891129,21.53512553,1226.4,1223.2,2.0955]
[1610323891328,4.00959,1225.6,1225.5,4.00959]
[1610323891528,4.00959,1225.6,1223.2,2.0955]
[1610323892930,4.00959,1225.6,1223.3,1.25005468]
[1610323893330,2.1159,1226.4,1223.3,1.25005468]
[1610323894230,2.1159,1226.4,1223.2,2.0955]
[1610323895430,2.1159,1226.4,1224.7,4.00959]
[1610323895630,2.1159,1226.4,1223.2,2.0955]
[1610323895830,2.1159,1226.4,1223.0,0.3]
[1610323896632,5.6269,1227.0,1223.0,0.3]
[1610323896633,21.5345013,1226.5,1223.0,0.3]
[1610323896831,5.82327678,1226.3,1223.1,1.25050234]
[1610323897431,4.00959,1225.2,1224.7,4.00959]
[1610323898733,4.00959,1225.2,1223.0,2.1695]
[1610323899339,4.00959,1224.3,1224.0,4.00959]
[1610323899733,4.00959,1224.3,1223.1,1.2507836]
[1610323900334,2.0681,1225.4,1223.1,1.2507836]
[1610323901334,4.00959,1225.0,1224.3,4.00959]
[1610323901934,2.2551,1226.1,1224.3,4.00959]
[1610323902134,2.2551,1226.1,1224.3,5.83359]
[1610323902535,52.02977271,1227.5,1224.3,5.83359]
[1610323902536,27.15349223,1227.0,1224.3,5.83359]
[1610323902940,5.6269,1227.0,1224.3,5.83359]
[1610323903340,4.00959,1225.8,1225.4,4.00959]
[1610323905442,4.00959,1225.5,1225.4,4.00959]
[1610323906242,2.2187,1226.8,1225.4,4.00959]
[1610323906442,2.2187,1226.8,1225.4,6.24249]
[1610323907245,21.51700827,1227.5,1225.4,6.24249]
[1610323907444,4.00959,1227.2,1226.4,4.00959]
[1610323907944,1.8469,1227.8,1226.4,4.00959]
[1610323908143,5.81922459,1227.4,1226.4,6.33349]
[1610323909348,5.81922459,1227.4,1227.3,4.00959]
[1610323909547,5.81804292,1228.1,1227.3,4.00959]
[1610323909748,5.81804292,1228.1,1227.3,5.55489]
[1610323910947,5.81733001,1228.2,1227.3,5.55489]
[1610323911548,5.81733001,1228.2,1228.1,4.00959]
[1610323911748,5.81733001,1228.2,1228.1,6.22209]
[1610323914051,5.81733001,1228.2,1228.1,2.2125]
[1610323914950,5.81733001,1228.2,1227.7,1.5525]
[1610323915353,4.00959,1228.3,1227.7,1.5525]
[1610323915551,4.00959,1227.8,1227.3,1.5453]
[1610323915751,4.00959,1227.8,1227.0,4.00959]
[1610323915951,4.00959,1227.8,1226.6,61.5923]
[1610323916553,30.0,1227.7,1226.6,61.5923]
[1610323917554,30.0,1227.7,1223.7,0.2500804]
[1610323917555,4.00959,1226.7,1224.7,4.00959]
[1610323917754,32.4509,1226.6,1223.4,0.25017898]
[1610323917953,32.4509,1226.6,1223.2,0.250233]
[1610323918353,32.4509,1226.6,1223.0,0.3]
[1610323918957,53.98435271,1226.6,1223.0,0.3]
[1610323919157,21.53479,1226.5,1223.0,0.3]
[1610323919356,30.0,1226.4,1223.0,0.3]
[1610323919556,30.0,1226.4,1223.1,1.25081309]
[1610323919757,30.0,1226.4,1223.8,2.4019]
[1610323919959,23.36832457,1226.2,1223.8,2.4019]
[1610323920161,30.0,1226.1,1223.8,2.4019]
[1610323920959,5.98960677,1226.0,1223.8,2.4019]
[1610323921160,32.2161,1225.9,1223.8,2.4019]
[1610323921559,32.2161,1225.9,1223.9,4.00959]
[1610323921961,32.2161,1225.9,1223.8,2.4019]
[1610323922364,5.99004017,1225.8,1223.8,2.4019]
[1610323923465,4.00959,1225.6,1223.8,2.4019]